lending/lending_fUSD_20250122
["ID","MTS","AMOUNT","RATE_DAILY","PERIOD"]
[350038982,1737587450577,-500.0,0.00021427,2]
[350038983,1737587450587,-503.97768256,0.00021427,2]
[350038984,1737587450596,-500.0,0.00021427,2]
[350038985,1737587450606,-500.0,0.00021427,2]
[350038986,1737587450616,-500.0,0.00021427,2]
[350038987,1737587450625,-437.60101049,0.00021427,2]
[350038988,1737587450636,-500.0,0.00021427,2]
[350038989,1737587450646,-500.0,0.00021427,2]
[350038990,1737587450656,-500.0,0.00021427,2]
[350038991,1737587450665,-500.0,0.00021427,2]
[350038992,1737587450674,-500.0,0.00021427,2]
[350038993,1737587450684,-611.60744565,0.00021427,2]
[350038994,1737587450698,-500.0,0.00021427,2]
[350038995,1737587450707,-500.0,0.00021427,2]
[350038996,1737587450717,-500.0,0.00021427,2]
[350038997,1737587450727,-500.0,0.00021427,2]
[350038998,1737587450736,-500.0,0.00021427,2]
[350038999,1737587450746,-500.0,0.00021427,2]
[350039000,1737587450755,-500.0,0.00021427,2]
[350039001,1737587450765,-500.0,0.00021427,2]
[350039002,1737587450775,-500.0,0.00021427,2]
[350039003,1737587450784,-500.0,0.00021427,2]
[350039004,1737587450793,-500.0,0.00021427,2]
[350039005,1737587450802,-500.0,0.00021427,2]
[350039006,1737587450811,-500.0,0.00021427,2]
[350039007,1737587450821,-500.0,0.00021427,2]
[350039008,1737587450830,-500.0,0.00021427,2]
[350039009,1737587450840,-500.0,0.00021427,2]
[350039010,1737587450849,-500.0,0.00021427,2]
[350039011,1737587450859,-500.0,0.00021427,2]
[350039012,1737587450868,-500.0,0.00021427,2]
[350039013,1737587450877,-594.08391816,0.00021427,2]
[350039014,1737587450887,-500.0,0.00021427,2]
[350039015,1737587450897,-500.0,0.00021427,2]
[350039016,1737587450907,-500.0,0.00021427,2]
[350039017,1737587450917,-500.0,0.00021427,2]
[350039018,1737587450926,-500.0,0.00021427,2]
[350039019,1737587450935,-500.0,0.00021427,2]
[350039020,1737587450949,-500.0,0.00021427,2]
[350039021,1737587450958,-500.0,0.00021427,2]
[350039022,1737587450968,-500.0,0.00021427,2]
[350039023,1737587450977,-500.0,0.00021427,2]
[350039024,1737587450986,-500.0,0.00021427,2]
[350039025,1737587450996,-500.0,0.00021427,2]
[350039026,1737587451006,-500.0,0.00021427,2]
[350039027,1737587451016,-500.0,0.00021427,2]
[350039028,1737587451027,-500.0,0.00021427,2]
[350039029,1737587451036,-500.0,0.00021427,2]
[350039030,1737587451050,-500.0,0.00021427,2]
[350039031,1737587451060,-500.0,0.00021427,2]
[350039032,1737587451071,-500.0,0.00021427,2]
[350039033,1737587451081,-500.0,0.00021427,2]
[350039034,1737587451090,-500.0,0.00021427,2]
[350039035,1737587451100,-500.0,0.00021427,2]
[350039036,1737587451109,-584.61,0.00021427,2]
[350039037,1737587451120,-500.0,0.00021427,2]
[350039038,1737587451129,-500.0,0.00021427,2]
[350039039,1737587451139,-500.0,0.00021427,2]
[350039040,1737587451149,-500.0,0.00021427,2]
[350039041,1737587451158,-500.0,0.00021427,2]
[350039042,1737587451168,-500.0,0.00021427,2]
[350039043,1737587451177,-500.0,0.00021427,2]
[350039044,1737587451190,-500.0,0.00021427,2]
[350039045,1737587451199,-500.0,0.00021427,2]
[350039046,1737587451208,-500.0,0.00021427,2]
[350039047,1737587451218,-500.0,0.00021427,2]
[350039048,1737587451227,-500.0,0.00021427,2]
[350039049,1737587451237,-500.0,0.00021427,2]
[350039050,1737587451247,-500.0,0.00021427,2]
[350039051,1737587451257,-500.0,0.00021427,2]
[350039052,1737587451267,-500.0,0.00021427,2]
[350039053,1737587451276,-500.0,0.00021427,2]
[350039054,1737587451285,-500.0,0.00021427,2]
[350039055,1737587451295,-500.0,0.00021427,2]
[350039056,1737587451304,-348.51328493,0.00021427,2]
[350039057,1737587451313,-500.0,0.00021427,2]
[350039058,1737587451323,-500.0,0.00021427,2]
[350039059,1737587451332,-500.0,0.00021427,2]
[350039060,1737587451342,-500.0,0.00021427,2]
[350039061,1737587451351,-500.0,0.00021427,2]
[350039062,1737587451360,-500.0,0.00021427,2]
[350039063,1737587451370,-513.7780546,0.00021427,2]
[350039064,1737587451380,-500.0,0.00021427,2]
[350039065,1737587451389,-500.0,0.00021427,2]
[350039066,1737587451398,-500.0,0.00021427,2]
[350039067,1737587451407,-500.0,0.00021427,2]
[350039068,1737587451416,-500.0,0.00021427,2]
[350039069,1737587451426,-500.0,0.00021427,2]
[350039070,1737587451435,-500.0,0.00021427,2]
[350039071,1737587451445,-500.0,0.00021427,2]
[350039072,1737587451454,-503.06773013,0.00021427,2]
[350039073,1737587451464,-500.0,0.00021427,2]
[350039074,1737587451473,-500.0,0.00021427,2]
[350039075,1737587451482,-500.0,0.00021427,2]
[350039076,1737587451491,-500.0,0.00021427,2]
[350039077,1737587451500,-500.0,0.00021427,2]
[350039078,1737587451509,-500.0,0.00021427,2]
[350039079,1737587451518,-500.0,0.00021427,2]
[350039080,1737587451527,-500.0,0.00021427,2]
[350039081,1737587451536,-500.0,0.00021427,2]
[350039082,1737587451545,-500.0,0.00021427,2]
[350039083,1737587451554,-500.0,0.00021427,2]
[350039084,1737587451563,-500.0,0.00021427,2]
[350039085,1737587451573,-500.0,0.00021427,2]
[350039086,1737587451581,-500.0,0.00021427,2]
[350039087,1737587451591,-500.0,0.00021427,2]
[350039088,1737587451600,-500.0,0.00021427,2]
[350039089,1737587451609,-500.0,0.00021427,2]
[350039090,1737587451618,-500.0,0.00021427,2]
[350039091,1737587451627,-500.0,0.00021427,2]
[350039092,1737587451636,-500.0,0.00021427,2]
[350039093,1737587451646,-500.0,0.00021427,2]
[350039094,1737587451655,-500.0,0.00021427,2]
[350039095,1737587451665,-500.0,0.00021427,2]
[350039096,1737587451675,-500.0,0.00021427,2]
[350039097,1737587451687,-500.0,0.00021427,2]
[350039098,1737587451695,-458.7366494,0.00021427,2]
[350039099,1737587451705,-500.0,0.00021427,2]
[350039100,1737587451714,-500.0,0.00021427,2]
[350039101,1737587451724,-500.0,0.00021427,2]
[350039102,1737587451733,-500.0,0.00021427,2]
[350039103,1737587451743,-500.0,0.00021427,2]
[350039104,1737587451753,-500.0,0.00021427,2]
[350039105,1737587451763,-500.0,0.00021427,2]
[350039106,1737587451772,-508.12547153,0.00021427,2]
[350039107,1737587451781,-500.0,0.00021427,2]
[350039108,1737587451791,-500.0,0.00021427,2]
[350039109,1737587451800,-500.0,0.00021427,2]
[350039110,1737587451809,-500.0,0.00021427,2]
[350039111,1737587451819,-500.0,0.00021427,2]
[350039112,1737587451829,-518.45220663,0.00021427,2]
[350039113,1737587451838,-498.95403899,0.00021427,2]
[350039114,1737587451847,-500.0,0.00021427,2]
[350039115,1737587451856,-512.80435258,0.00021427,2]
[350039116,1737587451866,-644.46,0.00021427,2]
[350039117,1737587451876,-500.0,0.00021427,2]
[350039118,1737587451886,-500.0,0.00021427,2]
[350039119,1737587451895,-500.0,0.00021427,2]
[350039120,1737587451905,-500.0,0.00021427,2]
[350039121,1737587451914,-450.92560425,0.00021427,2]
[350039122,1737587451924,-500.0,0.00021427,2]
[350039123,1737587451934,-500.0,0.00021427,2]
[350039124,1737587451947,-504.99718919,0.00021427,2]
[350039125,1737587451958,-500.0,0.00021427,2]
[350039126,1737587451967,-508.00587347,0.00021427,2]
[350039127,1737587451977,-581.87,0.00021427,2]
[350039128,1737587451987,-500.0,0.00021427,2]
[350039129,1737587451997,-500.0,0.00021427,2]
[350039130,1737587452008,-510.55962044,0.00021427,2]
[350039131,1737587452017,-500.0,0.00021427,2]
[350039132,1737587452028,-627.08728379,0.00021427,2]
[350039133,1737587452037,-629.82690745,0.00021427,2]
[350039134,1737587452051,-500.0,0.00021427,2]
[350039135,1737587452061,-311.33751129,0.00021427,2]
[350039136,1737587452071,-500.0,0.00021427,2]
[350039137,1737587452081,-500.0,0.00021427,2]
[350039138,1737587452091,-451.58290346,0.00021427,2]
[350039139,1737587452100,-511.71369016,0.00021427,2]
[350039140,1737587452110,-500.0,0.00021427,2]
[350039141,1737587452119,-562.71,0.00021427,2]
[350039142,1737587452129,-500.0,0.00021427,2]
[350039143,1737587452139,-319.74083394,0.00021427,2]
[350039144,1737587452148,-500.0,0.00021427,2]
[350039145,1737587452158,-500.0,0.00021427,2]
[350039146,1737587452167,-698.95,0.00021427,2]
[350039147,1737587452177,-600.3,0.00021427,2]
[350039148,1737587452186,-500.0,0.00021427,2]
[350039149,1737587452197,-1034.51,0.00021427,2]
[350039150,1737587452207,-500.0,0.00021427,2]
[350039151,1737587452216,-500.0,0.00021427,2]
[350039152,1737587452226,-500.0,0.00021427,2]
[350039153,1737587452350,-500.0,0.00021427,2]
[350039154,1737587452360,-500.0,0.00021427,2]
[350039155,1737587452370,-980.3,0.00021427,2]
[350039156,1737587452379,-500.0,0.00021427,2]
[350039157,1737587452389,-500.0,0.00021427,2]
[350039158,1737587452398,-1601.54,0.00021427,2]
[350039159,1737587452407,-500.0,0.00021427,2]
[350039160,1737587452416,-567.81,0.00021427,2]
[350039161,1737587452426,-500.0,0.00021427,2]
[350039162,1737587452435,-500.0,0.00021427,2]
[350039163,1737587452446,-347.28101028,0.00021427,2]
[350039164,1737587452455,-871.32,0.00021427,2]
[350039165,1737587452464,-500.0,0.00021427,2]
[350039166,1737587452474,-826.37,0.00021427,2]
[350039167,1737587452483,-500.0,0.00021427,2]
[350039168,1737587452492,-500.0,0.00021427,2]
[350039169,1737587452501,-2145.86,0.00021427,2]
[350039170,1737587452510,-500.0,0.00021427,2]
[350039171,1737587452520,-500.0,0.00021427,2]
[350039172,1737587452530,-500.0,0.00021427,2]
[350039173,1737587452540,-540.84,0.00021427,2]
[350039174,1737587452550,-500.0,0.00021427,2]
[350039175,1737587452559,-774.67,0.00021427,2]
[350039176,1737587452569,-1870.45,0.00021427,2]
[350039177,1737587452578,-500.0,0.00021427,2]
[350039178,1737587452587,-3881.82,0.00021427,2]
[350039179,1737587452597,-500.0,0.00021427,2]
[350039180,1737587452606,-500.0,0.00021427,2]
[350039181,1737587452616,-500.0,0.00021427,2]
[350039182,1737587452625,-500.0,0.00021427,2]
[350039183,1737587452634,-500.0,0.00021427,2]
[350039184,1737587452644,-500.0,0.00021427,2]
[350039185,1737587452653,-500.0,0.00021427,2]
[350039186,1737587452663,-202.81339653,0.00021427,2]
[350039187,1737587452672,-500.0,0.00021427,2]
[350039188,1737587452681,-500.0,0.00021427,2]
[350039189,1737587452692,-500.0,0.00021427,2]
[350039190,1737587452704,-629.18,0.00021427,2]
[350039191,1737587452715,-390.28,0.00021427,2]
[350039192,1737587452724,-500.0,0.00021427,2]
[350039193,1737587452734,-506.84448933,0.00021427,2]
[350039194,1737587452744,-867.94,0.00021427,2]
[350039195,1737587452753,-500.0,0.00021427,2]
[350039196,1737587452763,-500.0,0.00021427,2]
[350039197,1737587452773,-500.0,0.00021427,2]
[350039198,1737587452783,-1289.08,0.00021427,2]
[350039199,1737587452792,-500.0,0.00021427,2]
[350039200,1737587452802,-500.0,0.00021427,2]
[350039201,1737587452811,-3113.61,0.00021427,2]
[350039202,1737587452821,-570.53164706,0.00021427,2]
[350039203,1737587452831,-500.0,0.00021427,2]
[350039204,1737587452840,-500.0,0.00021427,2]
[350039205,1737587452850,-500.0,0.00021427,2]
[350039206,1737587452859,-500.0,0.00021427,2]
[350039207,1737587452868,-868.88,0.00021427,2]
[350039208,1737587452878,-500.0,0.00021427,2]
[350039209,1737587452887,-500.0,0.00021427,2]
[350039210,1737587452897,-2514.93,0.00021427,2]
[350039211,1737587452907,-500.0,0.00021427,2]
[350039212,1737587452916,-500.0,0.00021427,2]
[350039213,1737587452925,-1845.44,0.00021427,2]
[350039214,1737587452934,-500.0,0.00021427,2]
[350039215,1737587452946,-1141.74,0.00021427,2]
[350039216,1737587452955,-500.0,0.00021427,2]
[350039217,1737587452965,-500.0,0.00021427,2]
[350039218,1737587452975,-500.0,0.00021427,2]
[350039219,1737587452985,-500.0,0.00021427,2]
[350039220,1737587452994,-500.0,0.00021427,2]
[350039221,1737587453003,-501.35451051,0.00021427,2]
[350039222,1737587453012,-755.19,0.00021427,2]
[350039223,1737587453022,-500.0,0.00021427,2]
[350039224,1737587453034,-500.0,0.00021427,2]
[350039225,1737587453044,-1434.53,0.00021427,2]
[350039226,1737587453054,-500.0,0.00021427,2]
[350039227,1737587453063,-500.0,0.00021427,2]
[350039228,1737587453073,-500.0,0.00021427,2]
[350039229,1737587453083,-500.0,0.00021427,2]
[350039230,1737587453092,-969.84,0.00021427,2]
[350039231,1737587453101,-2682.52,0.00021427,2]
[350039232,1737587453111,-980.58,0.00021427,2]
[350039233,1737587453120,-489.93853176,0.00021427,2]
[350039234,1737587453130,-500.0,0.00021427,2]
[350039235,1737587453139,-500.0,0.00021427,2]
[350039236,1737587453148,-500.0,0.00021427,2]
[350039237,1737587453157,-500.0,0.00021427,2]
[350039238,1737587453166,-500.0,0.00021427,2]
[350039239,1737587453176,-500.0,0.00021427,2]
[350039240,1737587453185,-703.73,0.00021427,2]
[350039241,1737587453196,-1242.94,0.00021427,2]
[350039242,1737587453207,-500.0,0.00021427,2]
[350039243,1737587453216,-500.0,0.00021427,2]
[350039244,1737587453225,-500.0,0.00021427,2]
[350039245,1737587453235,-500.0,0.00021427,2]
[350039246,1737587453244,-500.0,0.00021427,2]
[350039247,1737587453253,-500.0,0.00021427,2]
[350039248,1737587453264,-500.0,0.00021427,2]
[350039249,1737587453273,-500.0,0.00021427,2]
[350039250,1737587453283,-500.0,0.00021427,2]
[350039251,1737587453293,-1521.1,0.00021427,2]
[350039252,1737587453304,-500.0,0.00021427,2]
[350039253,1737587453315,-513.82623084,0.00021427,2]
[350039254,1737587453324,-500.0,0.00021427,2]
[350039255,1737587453333,-1000.0,0.00021427,2]
[350039256,1737587453343,-500.0,0.00021427,2]
[350039257,1737587453353,-500.0,0.00021427,2]
[350039258,1737587453363,-500.0,0.00021427,2]
[350039259,1737587453372,-500.0,0.00021427,2]
[350039260,1737587453382,-500.0,0.00021427,2]
[350039261,1737587453392,-500.0,0.00021427,2]
[350039262,1737587453402,-1048.59,0.00021427,2]
[350039263,1737587453411,-660.01,0.00021427,2]
[350039264,1737587453421,-500.0,0.00021427,2]
[350039265,1737587453430,-500.0,0.00021427,2]
[350039266,1737587453440,-500.0,0.00021427,2]
[350039267,1737587453450,-500.0,0.00021427,2]
[350039268,1737587453459,-500.0,0.00021427,2]
[350039269,1737587453468,-500.0,0.00021427,2]
[350039270,1737587453477,-801.78,0.00021427,2]
[350039271,1737587453487,-500.0,0.00021427,2]
[350039272,1737587453495,-500.0,0.00021427,2]
[350039273,1737587453504,-500.0,0.00021427,2]
[350039274,1737587453514,-500.0,0.00021427,2]
[350039275,1737587453522,-1609.35,0.00021427,2]
[350039276,1737587453532,-500.0,0.00021427,2]
[350039277,1737587453541,-1044.76,0.00021427,2]
[350039278,1737587453550,-500.0,0.00021427,2]
[350039279,1737587453559,-500.0,0.00021427,2]
[350039280,1737587453569,-500.0,0.00021427,2]
[350039281,1737587453578,-500.0,0.00021427,2]
[350039282,1737587453588,-582.97000618,0.00021427,2]
[350039283,1737587453598,-264.55752656,0.00021427,2]
[350039284,1737587453608,-500.0,0.00021427,2]
[350039285,1737587453617,-500.0,0.00021427,2]
[350039286,1737587453626,-1915.38,0.00021427,2]
[350039287,1737587453636,-500.0,0.00021427,2]
[350039288,1737587453646,-500.0,0.00021427,2]
[350039289,1737587453657,-980.91,0.00021427,2]
[350039290,1737587453667,-500.0,0.00021427,2]
[350039291,1737587453677,-500.0,0.00021427,2]
[350039292,1737587453687,-537.4,0.00021427,2]
[350039293,1737587453698,-503.35971423,0.00021427,2]
[350039294,1737587453707,-500.0,0.00021427,2]
[350039295,1737587453716,-500.0,0.00021427,2]
[350039296,1737587453726,-500.0,0.00021427,2]
[350039297,1737587453735,-500.0,0.00021427,2]
[350039298,1737587453745,-500.0,0.00021427,2]
[350039299,1737587453754,-500.0,0.00021427,2]
[350039300,1737587453764,-500.0,0.00021427,2]
[350039301,1737587453778,-500.0,0.00021427,2]
[350039302,1737587453787,-500.0,0.00021427,2]
[350039303,1737587453797,-503.3508729,0.00021427,2]
[350039304,1737587453806,-500.0,0.00021427,2]
[350039305,1737587453815,-526.15,0.00021427,2]
[350039306,1737587453826,-500.0,0.00021427,2]
[350039307,1737587453835,-500.0,0.00021428,2]
[350039308,1737587453844,-500.0,0.00021428,2]
[350039309,1737587453854,-500.0,0.00021428,2]
[350039310,1737587453863,-500.0,0.00021428,2]
[350039311,1737587453872,-500.0,0.00021428,2]
[350039312,1737587453882,-500.0,0.00021428,2]
[350039313,1737587453892,-500.0,0.00021428,2]
[350039314,1737587453901,-500.0,0.00021428,2]
[350039315,1737587453911,-500.0,0.00021428,2]
[350039316,1737587453921,-500.0,0.00021428,2]
[350039317,1737587453930,-500.0,0.00021428,2]
[350039318,1737587453940,-500.0,0.00021428,2]
[350039319,1737587453950,-500.0,0.00021428,2]
[350039320,1737587453959,-500.0,0.00021428,2]
[350039321,1737587453968,-500.0,0.00021428,2]
[350039322,1737587453977,-500.0,0.00021428,2]
[350039323,1737587453986,-500.0,0.00021428,2]
[350039324,1737587453996,-500.0,0.00021428,2]
[350039325,1737587454005,-500.0,0.00021428,2]
[350039326,1737587454015,-500.0,0.00021428,2]
[350039327,1737587454025,-500.0,0.00021428,2]
[350039328,1737587454039,-500.0,0.00021428,2]
[350039329,1737587454048,-500.0,0.00021428,2]
[350039330,1737587454057,-500.0,0.00021428,2]
[350039331,1737587454067,-500.0,0.00021428,2]
[350039332,1737587454077,-500.0,0.00021428,2]
[350039333,1737587454086,-500.0,0.00021428,2]
[350039334,1737587454095,-500.0,0.00021428,2]
[350039335,1737587454105,-500.0,0.00021428,2]
[350039336,1737587454115,-500.0,0.00021428,2]
[350039337,1737587454126,-500.0,0.00021428,2]
[350039338,1737587454135,-500.0,0.00021428,2]
[350039339,1737587454145,-500.0,0.00021428,2]
[350039340,1737587454154,-500.0,0.00021428,2]
[350039341,1737587454163,-500.0,0.00021428,2]
[350039342,1737587454173,-500.0,0.00021428,2]
[350039343,1737587454182,-500.0,0.00021428,2]
[350039344,1737587454192,-500.0,0.00021428,2]
[350039345,1737587454202,-500.0,0.00021428,2]
[350039346,1737587454212,-500.0,0.00021428,2]
[350039347,1737587454221,-500.0,0.00021428,2]
[350039348,1737587454230,-508.77911643,0.00021428,2]
[350039349,1737587454240,-500.0,0.00021428,2]
[350039350,1737587454249,-500.0,0.00021428,2]
[350039351,1737587454258,-500.0,0.00021428,2]
[350039352,1737587454267,-500.0,0.00021428,2]
[350039353,1737587454276,-500.0,0.00021428,2]
[350039354,1737587454286,-240.39,0.00021428,2]
[350039355,1737587454295,-500.0,0.00021428,2]
[350039356,1737587454304,-416.61,0.00021428,2]
[350039357,1737587454314,-500.0,0.00021428,2]
[350039358,1737587454323,-500.0,0.00021428,2]
[350039359,1737587454332,-241.49,0.00021428,2]
[350039360,1737587454343,-500.0,0.00021428,2]
[350039361,1737587454352,-500.0,0.00021428,2]
[350039362,1737587454361,-500.0,0.00021428,2]
[350039363,1737587454370,-500.0,0.00021428,2]
[350039364,1737587454379,-1243.6562516,0.00021464,2]
[350039365,1737587454389,-8547.80559132,0.00021466,2]
[350039366,1737587454399,-8338.36872768,0.00021466,2]
[350039367,1737587454408,-178.65214618,0.0002147,2]
[350039368,1737587454418,-150.0,0.00021473,2]
[350039369,1737587454428,-1801.76719271,0.00021485,2]
[350039370,1737587454438,-206.12,0.00021498,2]
[350039371,1737587454451,-558.97,0.000215,2]
[350039372,1737587454461,-13224.22327818,0.00021548,2]
[350039373,1737587454471,-261.0,0.0002156,2]
[350039374,1737587454481,-500.0,0.00021568,2]
[350039375,1737587454491,-1047.92,0.00021568,2]
[350039376,1737587454501,-592.19,0.00021568,2]
[350039377,1737587454510,-1170.98,0.00021568,2]
[350039378,1737587454519,-467.901684,0.00021568,2]
[350039379,1737587454529,-500.0,0.00021568,2]
[350039380,1737587454539,-500.0,0.00021568,2]
[350039381,1737587454548,-500.0,0.00021568,2]
[350039382,1737587454558,-500.0,0.00021568,2]
[350039383,1737587454567,-839.7,0.00021568,2]
[350039384,1737587454577,-514.66,0.00021568,2]
[350039385,1737587454586,-500.0,0.00021568,2]
[350039386,1737587454596,-349.54773,0.00021568,2]
[350039387,1737587454606,-644.38,0.00021568,2]
[350039388,1737587454728,-1267.22,0.00021568,2]
[350039389,1737587454737,-527.41,0.00021568,2]
[350039390,1737587454747,-757.64,0.00021568,2]
[350039391,1737587454756,-587.07,0.00021568,2]
[350039392,1737587454766,-500.0,0.00021568,2]
[350039393,1737587454775,-500.0,0.00021568,2]
[350039394,1737587454784,-500.0,0.00021568,2]
[350039395,1737587454793,-1083.41,0.00021568,2]
[350039396,1737587454802,-976.46,0.00021568,2]
[350039397,1737587454811,-500.0,0.00021568,2]
[350039398,1737587454820,-1928.44,0.00021568,2]
[350039399,1737587454829,-774.08,0.00021568,2]
[350039400,1737587454838,-704.01747039,0.00021568,2]
[350039401,1737587455081,-56.31252961,0.00021568,2]
[350039402,1737587455093,-1126.5,0.00021568,2]
[350039403,1737587455103,-1406.58,0.00021568,2]
[350039404,1737587455112,-500.0,0.00021568,2]
[350039405,1737587455123,-669.68,0.00021568,2]
[350039406,1737587455132,-595.78,0.00021568,2]
[350039407,1737587455143,-1459.49,0.00021568,2]
[350039408,1737587455152,-500.0,0.00021568,2]
[350039409,1737587455161,-790.3,0.00021568,2]
[350039410,1737587455170,-500.0,0.00021568,2]
[350039411,1737587455180,-500.0,0.00021568,2]
[350039412,1737587455189,-500.0,0.00021568,2]
[350039413,1737587455200,-1206.96,0.00021568,2]
[350039414,1737587455210,-500.0,0.00021568,2]
[350039415,1737587455221,-500.0,0.00021568,2]
[350039416,1737587455230,-568.56,0.00021568,2]
[350039417,1737587455239,-500.0,0.00021568,2]
[350039418,1737587455248,-1180.29,0.00021568,2]
[350039419,1737587455258,-756.52,0.00021568,2]
[350039420,1737587455267,-500.0,0.00021568,2]
[350039421,1737587455276,-1495.09,0.00021568,2]
[350039422,1737587455285,-1816.63,0.00021568,2]
[350039423,1737587455294,-500.0,0.00021568,2]
[350039424,1737587455304,-500.0,0.00021568,2]
[350039425,1737587455313,-500.0,0.00021568,2]
[350039426,1737587455322,-500.0,0.00021568,2]
[350039427,1737587455331,-232.93525035,0.00021568,2]
[350039428,1737587455343,-267.06474965,0.00021568,2]
[350039429,1737587455353,-500.0,0.00021568,2]
[350039430,1737587455363,-1722.84,0.00021568,2]
[350039431,1737587455372,-500.0,0.00021568,2]
[350039432,1737587455381,-561.45641234,0.00021568,2]
[350039433,1737587455391,-500.0,0.00021568,2]
[350039434,1737587455400,-585.2,0.00021568,2]
[350039435,1737587455410,-857.95,0.00021568,2]
[350039436,1737587455419,-500.0,0.00021568,2]
[350039437,1737587455429,-500.0,0.00021568,2]
[350039438,1737587455438,-4306.7124,0.00021569,2]
[350039439,1737587455451,-8547.80559132,0.00021575,2]
[350039440,1737587455460,-307.60077034,0.00021575,2]
[350039441,1737587455470,-8338.36872768,0.00021575,2]
[350039442,1737587455480,-178.65214618,0.00021614,2]
[350039443,1737587455490,-3980.92139755,0.00021614,2]
[350039444,1737587455500,-173.47,0.00021622,2]
[350039445,1737587455509,-151.22,0.0002165,2]
[350039446,1737587455519,-500.0,0.00021669,2]
[350039447,1737587455528,-500.0,0.00021669,2]
[350039448,1737587455538,-500.0,0.00021669,2]
[350039449,1737587455547,-500.0,0.00021669,2]
[350039450,1737587455557,-500.0,0.00021669,2]
[350039451,1737587455566,-598.94,0.00021669,2]
[350039452,1737587455575,-500.0,0.00021669,2]
[350039453,1737587455585,-500.0,0.00021669,2]
[350039454,1737587455593,-500.0,0.00021669,2]
[350039455,1737587455603,-500.0,0.00021669,2]
[350039456,1737587455612,-500.0,0.00021669,2]
[350039457,1737587455621,-8547.80559132,0.00021683,2]
[350039458,1737587455630,-8338.36872768,0.00021683,2]
[350039459,1737587455639,-152.13,0.0002169,2]
[350039460,1737587455648,-150.5,0.0002169,2]
[350039461,1737587455658,-150.0,0.000217,2]
[350039462,1737587455667,-1046.0,0.000217,2]
[350039463,1737587455676,-255.0,0.000217,2]
[350039464,1737587455686,-500.0,0.00021701,2]
[350039465,1737587455699,-500.0,0.00021701,2]
[350039466,1737587455708,-500.0,0.00021701,2]
[350039467,1737587455718,-571.684995,0.00021701,2]
[350039468,1737587455728,-500.0,0.00021701,2]
[350039469,1737587455738,-500.0,0.00021701,2]
[350039470,1737587455748,-656.78,0.00021701,2]
[350039471,1737587455757,-500.0,0.00021701,2]
[350039472,1737587455767,-500.0,0.00021701,2]
[350039473,1737587455777,-500.0,0.00021701,2]
[350039474,1737587455786,-500.0,0.00021701,2]
[350039475,1737587455796,-500.0,0.00021701,2]
[350039476,1737587455805,-561.53815495,0.00021701,2]
[350039477,1737587455815,-500.0,0.00021701,2]
[350039478,1737587455824,-500.0,0.00021701,2]
[350039479,1737587455833,-168.05198104,0.00021701,2]
[350039480,1737587455844,-500.0,0.00021701,2]
[350039481,1737587455854,-500.0,0.00021701,2]